bitfinex/quotes_BTCUSD_20240803
["timestamp","ask_amount","ask_price","bid_price","bid_amount"]
[1722717129938,0.164859,60658.0,60653.0,0.164872]
[1722717129939,0.13707368,60656.0,60654.0,0.03634783]
[1722717130283,0.00240439,60655.0,60654.0,0.03634783]
[1722717130426,0.00240439,60655.0,60654.0,0.20121683]
[1722717130427,0.00083,60655.0,60654.0,0.20121683]
[1722717131325,0.00083,60655.0,60654.0,0.03634783]
[1722717131500,0.30277213,60655.0,60654.0,0.03634783]
[1722717131703,0.30277213,60655.0,60650.0,0.164879]
[1722717131903,0.13707613,60654.0,60647.0,0.0634]
[1722717132166,0.00083,60655.0,60654.0,0.164869]
[1722717132367,0.00083,60655.0,60654.0,0.824347]
[1722717132762,0.00583,60655.0,60654.0,1.155086]
[1722717133056,0.00583,60655.0,60654.0,1.154086]
[1722717133584,0.00083,60655.0,60654.0,1.234586]
[1722717135312,0.00183,60655.0,60654.0,1.252586]
[1722717135517,0.00183,60655.0,60654.0,1.81147589]
[1722717135727,0.00183,60655.0,60654.0,1.87321965]
[1722717136087,0.00183,60655.0,60654.0,1.94372063]
[1722717136290,0.00183,60655.0,60654.0,2.18148901]
[1722717136432,0.00183,60655.0,60654.0,2.13223636]
[1722717137261,0.00183,60655.0,60654.0,2.10023636]
[1722717137469,0.00183,60655.0,60654.0,2.03172063]
[1722717138434,0.00183,60655.0,60654.0,1.63346567]
[1722717138657,0.00183,60655.0,60654.0,1.58173689]
[1722717140055,0.02768479,60655.0,60654.0,1.58173689]
[1722717140751,0.02768479,60655.0,60654.0,1.91147589]
[1722717141061,0.02768479,60655.0,60654.0,1.64563253]
[1722717141237,0.02768479,60655.0,60654.0,1.64363253]
[1722717141488,0.02768479,60655.0,60654.0,1.97337153]
[1722717141700,0.00183,60655.0,60654.0,1.97337153]
[1722717142440,0.00183,60655.0,60654.0,1.975389]
[1722717143045,0.00183,60655.0,60654.0,1.973389]
[1722717143315,0.00183,60655.0,60654.0,1.975389]
[1722717144534,0.02768378,60655.0,60654.0,1.975389]
[1722717144729,0.02768378,60655.0,60654.0,1.963389]
[1722717144948,0.02768378,60655.0,60654.0,1.335486]
[1722717145147,0.02768378,60655.0,60654.0,1.51123689]
[1722717145454,0.02768378,60655.0,60654.0,1.91097589]
[1722717146049,0.02768378,60655.0,60654.0,1.58123689]
[1722717146541,0.00183,60655.0,60654.0,1.58123689]
[1722717146889,0.00183,60655.0,60654.0,1.172086]
[1722717147091,0.00183,60655.0,60654.0,0.842347]
[1722717147886,0.00183,60655.0,60654.0,0.018]
[1722717148293,0.00183,60655.0,60654.0,0.512608]
[1722717148924,0.00183,60655.0,60654.0,0.182869]
[1722717149127,0.00183,60655.0,60654.0,0.842347]
[1722717149336,0.00183,60655.0,60654.0,0.512608]
[1722717149536,0.00183,60655.0,60654.0,0.018]
[1722717149751,0.0276874,60655.0,60654.0,0.5638688]
[1722717150724,0.0276874,60655.0,60654.0,1.38909769]
[1722717150924,0.0276874,60655.0,60654.0,1.53129769]
[1722717151085,0.0276874,60655.0,60654.0,1.86103669]
[1722717151707,0.0276874,60655.0,60654.0,1.87303669]
[1722717151920,0.0276874,60655.0,60654.0,1.86103669]
[1722717151921,0.00183,60655.0,60654.0,1.86103669]
[1722717152615,0.00183,60655.0,60654.0,1.87103669]
[1722717152910,0.00183,60655.0,60654.0,1.96103669]
[1722717154171,0.00183,60655.0,60654.0,1.63129769]
[1722717155204,0.00183,60655.0,60654.0,1.55129769]
[1722717156013,0.00183,60655.0,60654.0,1.45129769]
[1722717158248,0.00183,60655.0,60654.0,1.2233468]
[1722717161624,0.00183,60655.0,60654.0,1.38909769]
[1722717161824,0.00183,60655.0,60654.0,1.79883669]
[1722717162027,0.00183,60655.0,60654.0,1.38909769]
[1722717162633,0.02768497,60655.0,60654.0,1.38909769]
[1722717163627,0.02768497,60655.0,60654.0,0.5638688]
[1722717164002,0.19255097,60655.0,60654.0,0.018]
[1722717164202,0.00183,60655.0,60654.0,0.018]
[1722717164538,0.82773639,60655.0,60654.0,0.018]
[1722717164737,0.77640997,60655.0,60654.0,0.018]
[1722717165136,0.77641236,60655.0,60654.0,0.018]
[1722717165537,0.638329,60655.0,60654.0,0.008]
[1722717165738,0.164874,60653.0,60648.0,0.164885]
[1722717165944,0.00157439,60652.0,60648.0,0.164885]
[1722717166574,0.00157439,60652.0,60649.0,0.164882]
[1722717166739,0.00157439,60654.0,60650.0,0.16488]
[1722717167217,0.00157439,60654.0,60653.0,0.494616]
[1722717167425,0.14373,60655.0,60647.0,0.08186213]
[1722717167570,0.00083,60655.0,60654.0,0.494608]
[1722717167783,0.00083,60655.0,60654.0,0.51113326]
[1722717168021,0.00083,60655.0,60654.0,0.19920936]
[1722717168794,0.00083,60655.0,60654.0,0.52894836]
[1722717169016,0.00083,60655.0,60654.0,0.86268736]
[1722717169453,0.00083,60655.0,60654.0,1.19242636]
[1722717170950,0.00083,60655.0,60654.0,1.18842636]
[1722717171183,0.00083,60655.0,60654.0,1.82561625]
[1722717171184,0.02668639,60655.0,60654.0,1.82561625]
[1722717171385,0.02668639,60655.0,60654.0,1.83261625]
[1722717171386,0.02768639,60655.0,60654.0,1.83261625]
[1722717171849,0.02768639,60655.0,60654.0,1.82561625]
[1722717171850,0.02668639,60655.0,60654.0,1.82561625]
[1722717172064,0.02668639,60655.0,60654.0,1.88863898]
[1722717172286,0.00183,60655.0,60654.0,1.89163898]
[1722717172703,0.00083,60655.0,60654.0,1.87494954]
[1722717173090,0.00183,60655.0,60654.0,1.88894536]
[1722717173314,0.00183,60655.0,60654.0,1.83709099]
[1722717173526,0.00183,60655.0,60654.0,1.8889946]
[1722717173692,0.00183,60655.0,60654.0,1.75869099]
[1722717175625,0.02768487,60655.0,60654.0,1.36565199]
[1722717177202,0.02768487,60655.0,60654.0,1.69539099]
[1722717177442,0.02768487,60655.0,60654.0,1.36565199]
[1722717177818,0.02768487,60655.0,60654.0,1.69539099]
[1722717178261,0.02768487,60655.0,60654.0,1.74714888]
[1722717178470,0.02768487,60655.0,60654.0,2.38538788]
[1722717178679,0.02768487,60655.0,60654.0,2.43943592]
[1722717178876,0.02768487,60655.0,60654.0,2.56246927]
[1722717179087,0.02768487,60655.0,60654.0,2.76917492]
[1722717179494,0.02768487,60655.0,60654.0,2.79217492]
[1722717179903,0.02768487,60655.0,60654.0,2.62090203]
[1722717180078,0.02768487,60655.0,60654.0,2.79216556]
[1722717180291,0.00157439,60675.0,60654.0,2.79216556]
[1722717180292,0.00157439,60675.0,60665.0,0.01]
[1722717180494,0.07408318,60690.0,60665.0,0.01]
[1722717180495,0.0755,60682.0,60681.0,0.164796]
[1722717180693,0.062,60688.0,60687.0,0.494338]
[1722717180868,0.062,60688.0,60687.0,0.8417121]
[1722717181072,0.1375,60688.0,60687.0,0.8417121]
[1722717181632,0.1375,60688.0,60687.0,0.0178151]
[1722717182249,0.1375,60688.0,60687.0,0.1825941]
[1722717182571,0.1375,60688.0,60687.0,0.0178151]
[1722717182970,0.1385,60688.0,60687.0,0.0178151]
[1722717183555,0.79858189,60688.0,60681.0,0.01652526]
[1722717183755,0.164802,60679.0,60673.0,0.01652526]
[1722717184062,0.164802,60679.0,60674.0,0.164815]
[1722717184235,0.164802,60679.0,60669.0,0.329655]
[1722717184236,0.0629,60674.0,60660.0,0.01652526]
[1722717184441,0.0629,60674.0,60662.0,0.164847]
[1722717184442,0.0767,60672.0,60662.0,0.164847]
[1722717184656,0.00157439,60670.0,60657.0,0.49750831]
[1722717184859,0.0767,60672.0,60668.0,0.16483]
[1722717185095,0.0767,60672.0,60671.0,0.494469]
[1722717185656,0.1,60688.0,60679.0,0.494404]
[1722717185657,0.0629,60680.0,60679.0,0.494404]
[1722717186062,0.0767,60682.0,60679.0,0.494404]
[1722717186221,0.0629,60686.0,60685.0,0.494355]
[1722717186420,0.0629,60686.0,60685.0,0.164785]
[1722717186645,0.0629,60686.0,60685.0,0.2471804]
[1722717187049,0.0629,60686.0,60685.0,0.0823954]
[1722717187249,0.0629,60686.0,60685.0,0.5767504]
[1722717187538,0.0767,60688.0,60685.0,0.5767504]
[1722717187539,0.0767,60688.0,60687.0,0.494338]
[1722717188923,0.0767,60688.0,60687.0,0.164779]
[1722717189131,0.0767,60688.0,60687.0,0.18206083]
[1722717189330,0.0767,60688.0,60687.0,0.01728183]
[1722717189774,0.0767,60688.0,60687.0,0.18206083]
[1722717190127,0.10254568,60688.0,60687.0,0.01728183]
[1722717190435,0.0767,60688.0,60687.0,0.164779]
[1722717190629,0.0767,60688.0,60685.0,0.164784]
[1722717190830,0.0777,60688.0,60687.0,0.002]
[1722717191055,0.0777,60688.0,60687.0,0.0516365]
[1722717191206,0.0777,60688.0,60687.0,0.0496365]
[1722717191412,0.0777,60688.0,60685.0,0.164784]
[1722717191615,0.0767,60688.0,60687.0,0.003]
[1722717191866,0.0777,60688.0,60687.0,0.003]
[1722717192023,0.0777,60688.0,60687.0,0.0826933]
[1722717192024,0.0767,60688.0,60687.0,0.0826933]
[1722717192221,0.0767,60688.0,60687.0,0.494338]
[1722717192421,0.0767,60688.0,60687.0,0.497338]
[1722717192742,0.0767,60688.0,60687.0,0.003]
[1722717192961,0.900585,60688.0,60687.0,0.003]
[1722717193176,1.12923589,60688.0,60687.0,0.003]
[1722717193521,1.15508264,60688.0,60687.0,0.003]
[1722717193727,0.164791,60683.0,60677.0,0.164806]
[1722717193953,0.164788,60684.0,60678.0,0.164804]
[1722717194520,0.164809,60676.0,60675.0,0.4684]
[1722717194740,0.0767,60676.0,60675.0,0.4684]
[1722717194946,0.241509,60676.0,60675.0,0.4684]
[1722717195192,0.0767,60676.0,60675.0,0.5317222]
[1722717195795,0.304409,60676.0,60675.0,0.5317222]
[1722717196004,0.1396,60676.0,60675.0,0.5317222]
[1722717196556,0.469219,60676.0,60675.0,0.5317222]
[1722717196799,0.469219,60676.0,60657.0,0.4684]
[1722717196800,0.0767,60675.0,60657.0,0.4684]
[1722717197002,0.164835,60667.0,60660.0,0.329703]
[1722717197214,0.01875019,60666.0,60665.0,0.164839]
[1722717197418,0.32964,60673.0,60665.0,0.164839]
[1722717197419,0.00157439,60673.0,60672.0,0.16482]
[1722717197667,0.00976387,60682.0,60675.0,0.007]
[1722717197668,0.00157439,60679.0,60675.0,0.007]
[1722717197901,0.886947,60676.0,60675.0,0.007]
[1722717198146,1.74236918,60676.0,60675.0,0.007]
[1722717198519,0.164845,60663.0,60655.0,0.000913]
[1722717198709,0.329684,60665.0,60656.0,0.03471843]
[1722717198994,0.00157439,60666.0,60656.0,0.03471843]
[1722717199233,0.00157439,60667.0,60659.0,0.0666]
[1722717199470,0.105,60676.0,60659.0,0.0666]
[1722717199471,0.164824,60671.0,60659.0,0.0666]
[1722717199685,0.0629,60673.0,60665.0,0.164838]
[1722717199686,0.00157439,60670.0,60665.0,0.164838]
[1722717199857,0.00157439,60672.0,60666.0,0.0494532]
[1722717200114,0.00157439,60672.0,60661.0,0.0772]
[1722717200317,0.0629,60673.0,60661.0,0.4069]
[1722717200492,0.16639539,60672.0,60665.0,0.164838]
[1722717200715,0.16639539,60672.0,60664.0,0.329681]
[1722717200716,0.164823,60671.0,60664.0,0.329681]
[1722717200839,0.00157439,60669.0,60665.0,0.0329681]
[1722717201032,0.00157439,60670.0,60666.0,0.164835]
[1722717201412,0.00157439,60672.0,60666.0,0.329669]
[1722717201612,0.00157439,60672.0,60661.0,0.08291805]
[1722717201613,0.02585299,60670.0,60669.0,0.164827]
[1722717202394,0.02585299,60670.0,60669.0,0.494484]
[1722717202564,0.02585299,60670.0,60669.0,0.824141]
[1722717202784,0.02585299,60670.0,60669.0,0.84066626]
[1722717202942,0.02585299,60670.0,60669.0,0.51100926]
[1722717203140,0.02585299,60670.0,60669.0,0.84066626]
[1722717203355,0.02585299,60670.0,60669.0,0.51100926]
[1722717203576,0.02585299,60670.0,60669.0,0.18135226]
[1722717203781,0.02585299,60670.0,60669.0,0.164828]
[1722717204118,0.02585299,60670.0,60662.0,0.01652526]
[1722717204342,0.00157439,60669.0,60666.0,0.164836]
[1722717204546,0.11177104,60670.0,60663.0,0.164842]
[1722717204750,0.00157439,60669.0,60663.0,0.329689]
[1722717204952,0.00157439,60669.0,60668.0,0.164831]
[1722717205154,0.00157439,60669.0,60668.0,0.824157]
[1722717205917,0.00357439,60669.0,60668.0,0.824157]
[1722717206114,0.002,60669.0,60668.0,1.29492]
[1722717207074,0.002,60669.0,60668.0,1.29592]
[1722717207304,0.002,60669.0,60668.0,1.79133389]
[1722717207499,0.002,60669.0,60668.0,1.79033389]
[1722717207882,0.02585299,60670.0,60669.0,1.153799]
[1722717208092,0.02585299,60670.0,60669.0,1.33607515]
[1722717208627,0.02585299,60670.0,60669.0,1.72746507]
[1722717208825,0.02585299,60670.0,60669.0,1.82746507]
[1722717209025,0.02585299,60670.0,60669.0,1.81746507]
[1722717209157,0.02585299,60670.0,60669.0,1.76573215]
[1722717209358,0.02685299,60670.0,60669.0,1.83143785]
[1722717209620,0.02685299,60670.0,60669.0,1.82743785]
[1722717209621,0.02585299,60670.0,60669.0,1.82743785]
[1722717209938,0.02585299,60670.0,60669.0,2.305885]
[1722717210129,0.02585299,60670.0,60669.0,2.60905745]
[1722717210483,0.02585299,60670.0,60669.0,2.62293583]
[1722717210866,0.02685299,60670.0,60669.0,2.62293583]
[1722717211121,0.02685299,60670.0,60669.0,2.62292582]
[1722717211288,0.02685299,60670.0,60669.0,2.57390559]
[1722717211289,0.02585299,60670.0,60669.0,2.57390559]
[1722717211488,0.02685299,60670.0,60669.0,2.63692934]
[1722717211918,0.02585299,60670.0,60669.0,2.62292934]
[1722717212176,0.02685299,60670.0,60669.0,2.63692585]
[1722717212373,0.001,60670.0,60669.0,2.5739021]
[1722717212824,0.001,60670.0,60669.0,2.55460398]
[1722717212976,0.001,60670.0,60669.0,2.69157766]
[1722717213336,0.001,60670.0,60669.0,2.5178353]
[1722717213540,0.001,60670.0,60669.0,2.44681151]
[1722717213742,0.001,60670.0,60669.0,2.04866767]
[1722717213942,0.00083,60688.0,60669.0,2.04866767]
[1722717213943,0.00083,60688.0,60687.0,0.823897]
[1722717215582,0.00083,60688.0,60687.0,0.825897]
[1722717215808,0.00083,60688.0,60687.0,0.823897]
[1722717216207,0.00083,60688.0,60687.0,0.833897]
[1722717216976,0.0266744,60688.0,60687.0,0.833897]
[1722717217389,0.0276744,60688.0,60687.0,0.841897]
[1722717217866,0.0276744,60688.0,60687.0,1.171456]
[1722717219275,0.1087744,60688.0,60687.0,0.018]
[1722717219478,0.1724744,60688.0,60687.0,0.018]
[1722717219691,0.1724744,60688.0,60687.0,0.0692373]
[1722717220095,0.311407,60688.0,60687.0,0.0692373]
[1722717221003,0.640961,60688.0,60687.0,0.0692373]
[1722717221221,1.46581989,60688.0,60687.0,0.018]
[1722717221969,1.46581989,60688.0,60687.0,0.008]
[1722717222208,0.0811,60677.0,60668.0,0.49750831]
[1722717222415,0.24685089,60677.0,60669.0,0.329653]
[1722717222613,0.24685089,60677.0,60671.0,0.164822]
[1722717222814,0.0811,60677.0,60674.0,0.164813]
[1722717223134,0.0208509,60676.0,60675.0,0.494437]
[1722717223376,0.0811,60677.0,60676.0,0.494428]
[1722717223764,0.0811,60677.0,60676.0,0.824047]
[1722717223960,0.0911,60677.0,60676.0,0.824047]
[1722717224165,0.0911,60677.0,60676.0,0.494428]
[1722717224365,0.0811,60677.0,60676.0,0.494428]
[1722717224594,0.164791,60683.0,60676.0,0.494428]
[1722717224595,0.0778,60683.0,60682.0,0.49438]
[1722717224807,0.00157439,60687.0,60686.0,0.164782]
[1722717225091,0.00157439,60687.0,60683.0,0.049438]
[1722717225092,0.16635639,60687.0,60683.0,0.049438]
[1722717225264,0.164782,60687.0,60681.0,0.164794]
[1722717225463,0.164782,60687.0,60676.0,0.004]
[1722717225464,0.00157439,60687.0,60676.0,0.001]
[1722717225664,0.00157439,60687.0,60680.0,0.329594]
[1722717225665,0.164781,60687.0,60680.0,0.329594]
[1722717225870,0.164781,60687.0,60682.0,0.164793]
[1722717226067,0.164781,60687.0,60684.0,0.164787]
[1722717226068,0.00357439,60687.0,60684.0,0.164787]
[1722717226274,0.002,60687.0,60684.0,0.164787]
[1722717226448,0.16835439,60687.0,60682.0,0.164792]
[1722717226649,0.16478,60687.0,60682.0,0.164792]
[1722717226848,0.002,60687.0,60685.0,0.164783]
[1722717227097,0.002,60687.0,60685.0,0.164785]
[1722717227312,0.002,60687.0,60684.0,0.329575]
[1722717227641,0.006,60687.0,60686.0,0.164782]
[1722717227768,0.00083,60688.0,60687.0,0.494338]
[1722717228409,0.001,60687.0,60686.0,0.01994396]
[1722717228733,0.01,60687.0,60686.0,0.51428996]
[1722717228936,0.009,60687.0,60686.0,0.51428996]
[1722717229313,0.009,60687.0,60686.0,0.01994396]
[1722717229721,0.009,60687.0,60684.0,0.001]
[1722717229722,0.173779,60687.0,60684.0,0.001]
[1722717229925,0.00083,60688.0,60683.0,0.01652526]
[1722717230129,0.00083,60688.0,60687.0,0.001]
[1722717230130,0.00683,60688.0,60687.0,0.001]
[1722717230507,0.00683,60688.0,60686.0,0.006]
[1722717230875,0.00683,60688.0,60687.0,0.05168893]
[1722717231083,0.02667584,60688.0,60687.0,0.05168893]
[1722717231230,0.00083,60688.0,60687.0,0.05268893]
[1722717231439,1.12966589,60688.0,60687.0,0.001]
[1722717231641,0.494338,60687.0,60686.0,0.006]
[1722717231819,0.823897,60687.0,60686.0,0.007]
[1722717232007,0.823897,60687.0,60686.0,0.001]
[1722717232218,0.818897,60687.0,60686.0,0.001]
[1722717232839,0.489338,60687.0,60686.0,0.001]
[1722717233039,0.30578089,60688.0,60686.0,0.006]
[1722717233244,0.07863,60688.0,60687.0,0.494338]
[1722717233450,0.00083,60688.0,60687.0,0.494338]
[1722717233645,0.00083,60688.0,60687.0,0.164779]
[1722717233846,0.00083,60688.0,60687.0,0.494338]
[1722717234068,0.00083,60688.0,60687.0,0.57793603]
[1722717234240,0.00083,60688.0,60687.0,0.24837703]
[1722717234623,0.02667504,60688.0,60687.0,0.57793603]
[1722717234846,0.00083,60688.0,60687.0,0.57693603]
[1722717235726,0.00083,60688.0,60687.0,0.08259803]
[1722717236137,0.00083,60688.0,60687.0,0.08859803]
[1722717236344,0.16718139,60688.0,60687.0,0.09159803]
[1722717236517,0.165607,60688.0,60687.0,0.08859803]
[1722717236821,0.495161,60688.0,60687.0,0.003]
[1722717236977,0.16479,60684.0,60679.0,0.01652526]
[1722717237160,0.164785,60685.0,60679.0,0.01652526]
[1722717237356,0.164785,60685.0,60680.0,0.164798]
[1722717237631,0.0652,60686.0,60679.0,0.01652526]
[1722717237824,0.329584,60683.0,60679.0,0.01652526]
[1722717237961,0.164798,60680.0,60672.0,0.329638]
[1722717238162,0.164798,60680.0,60675.0,0.164811]
[1722717238593,0.164801,60679.0,60674.0,0.164814]
[1722717239798,0.245009,60676.0,60675.0,0.013]
[1722717240028,0.969447,60676.0,60675.0,0.013]
[1722717241039,0.639828,60676.0,60675.0,0.04934]
[1722717241555,0.004,60676.0,60675.0,0.935202]
[1722717242027,0.02984852,60676.0,60675.0,0.935202]
[1722717242283,0.004,60676.0,60675.0,1.5300212]
[1722717243022,0.004,60676.0,60675.0,1.5360212]
[1722717243232,0.00083,60688.0,60683.0,0.164789]
[1722717243438,0.00157439,60687.0,60684.0,0.164787]
[1722717243661,0.00157439,60687.0,60682.0,0.329583]
[1722717243662,0.00157439,60687.0,60680.0,0.329592]
[1722717243894,0.329561,60687.0,60681.0,0.04934]
[1722717244107,0.16479,60684.0,60681.0,0.04934]
[1722717244255,0.1457,60687.0,60681.0,0.04934]
[1722717244457,0.00083,60688.0,60682.0,0.0378943]
[1722717244458,0.330384,60688.0,60682.0,0.0378943]
[1722717244618,0.171607,60688.0,60683.0,0.16579]
[1722717244842,0.16478,60687.0,60682.0,0.2026873]
[1722717245039,0.00083,60688.0,60684.0,0.164787]
[1722717245248,0.00083,60688.0,60683.0,0.05588076]
[1722717245249,0.17235539,60687.0,60683.0,0.05588076]
[1722717245447,0.170781,60687.0,60683.0,0.05588076]
[1722717245706,0.006,60687.0,60684.0,0.04479647]
[1722717245917,0.006,60687.0,60684.0,0.20958347]
[1722717246319,0.001,60687.0,60684.0,0.20958347]
[1722717246705,0.001,60687.0,60685.0,0.164784]
[1722717246912,0.02684595,60687.0,60686.0,0.05488076]
[1722717247114,0.001,60687.0,60686.0,0.05488076]
[1722717247291,0.004,60687.0,60686.0,0.54922776]
[1722717247545,0.004,60687.0,60686.0,0.87879276]
[1722717247743,0.003,60687.0,60686.0,0.54922776]
[1722717248166,0.00157439,60691.0,60688.0,0.164776]
[1722717248410,0.3788439,60701.0,60686.0,0.05488076]
[1722717248411,0.083,60697.0,60694.0,0.16476]
[1722717248715,0.083,60697.0,60691.0,0.164766]
[1722717248716,0.41350589,60697.0,60691.0,0.164766]
[1722717248848,0.00157439,60696.0,60693.0,0.164763]
[1722717249050,0.00157439,60696.0,60694.0,0.0164763]
[1722717249837,0.00157439,60696.0,60694.0,0.0174763]
[1722717250042,0.57825889,60697.0,60694.0,0.0174763]
[1722717250254,0.164757,60696.0,60694.0,0.0174763]
[1722717250457,0.001,60696.0,60694.0,0.0174763]
[1722717250699,0.165755,60696.0,60694.0,0.0174763]
[1722717250897,0.165755,60696.0,60695.0,0.01822433]
[1722717250898,0.001,60696.0,60695.0,0.01822433]
[1722717251964,0.16632939,60696.0,60695.0,0.01822433]
[1722717252167,0.33931369,60699.0,60694.0,0.0164763]
[1722717252168,0.00157439,60698.0,60694.0,0.0164763]
[1722717252423,0.164766,60692.0,60687.0,0.164778]
[1722717252588,0.1457,60694.0,60688.0,0.18130026]
[1722717252589,0.164764,60693.0,60688.0,0.18130026]
[1722717252792,0.00157439,60692.0,60688.0,0.18130026]
[1722717253022,0.02741898,60692.0,60688.0,0.18130026]
[1722717253463,0.02741898,60692.0,60690.0,0.164771]
[1722717253682,0.02584459,60692.0,60691.0,0.164769]
[1722717253881,0.33050389,60697.0,60692.0,0.164765]
[1722717253882,0.33050489,60697.0,60692.0,0.164765]
[1722717254127,0.00157439,60694.0,60692.0,0.164765]
[1722717254317,0.164753,60697.0,60692.0,0.164765]
[1722717254676,0.164753,60697.0,60693.0,0.164763]
[1722717255035,0.165753,60697.0,60692.0,0.164766]
[1722717255241,0.001,60697.0,60693.0,0.0550672]
[1722717255449,0.001,60697.0,60691.0,0.006]
[1722717255626,0.001,60697.0,60695.0,0.164758]
[1722717255777,0.001,60697.0,60696.0,0.0170758]
[1722717256755,0.329483,60702.0,60696.0,0.0170758]
[1722717256925,0.164747,60699.0,60696.0,0.0170758]
[1722717257139,0.16575089,60699.0,60696.0,0.0170758]
[1722717257387,0.16575089,60699.0,60697.0,0.03465988]
[1722717258217,0.16675089,60699.0,60697.0,0.03465988]
[1722717258421,0.001,60699.0,60698.0,0.49425]
[1722717258623,0.023,60702.0,60699.0,0.164746]
[1722717258850,0.023,60702.0,60700.0,0.21268455]
[1722717259055,0.023,60702.0,60700.0,0.04794155]
[1722717259170,0.023,60702.0,60700.0,0.03294155]
[1722717259372,0.023,60702.0,60700.0,0.19768555]
[1722717259619,0.023,60702.0,60701.0,0.0170758]
[1722717260169,0.17596989,60703.0,60701.0,0.0170758]
[1722717260170,0.010219,60703.0,60702.0,0.494217]
[1722717260406,0.010219,60703.0,60702.0,0.557917]
[1722717260605,0.010219,60703.0,60702.0,0.90392026]
[1722717261489,0.010219,60703.0,60702.0,0.90992026]
[1722717261490,0.03605676,60703.0,60702.0,0.90992026]
[1722717261696,0.010219,60703.0,60702.0,0.94758014]
[1722717262305,0.010219,60703.0,60702.0,0.94158014]
[1722717263003,0.010219,60703.0,60702.0,0.93858014]
[1722717263454,0.010219,60703.0,60702.0,0.94158014]
[1722717263947,0.010219,60703.0,60702.0,0.93858014]
[1722717264182,0.010219,60703.0,60702.0,0.55640214]
[1722717264399,0.010219,60703.0,60702.0,0.89388014]
[1722717264624,0.010219,60703.0,60702.0,1.20435814]
[1722717265077,0.03605615,60703.0,60702.0,1.22335814]
[1722717265602,0.03605615,60703.0,60702.0,1.20683288]
[1722717266050,0.03605615,60703.0,60702.0,0.87735488]
[1722717266277,0.010219,60703.0,60702.0,0.87735488]
[1722717266510,0.010219,60703.0,60702.0,1.18783288]
[1722717266745,0.010219,60703.0,60702.0,1.19783288]
[1722717266980,0.010219,60703.0,60702.0,0.88035488]
[1722717269526,0.03605603,60703.0,60702.0,0.88035488]
[1722717269867,0.010219,60703.0,60702.0,0.88035488]
[1722717271493,0.010219,60703.0,60702.0,0.022]
[1722717271693,0.154319,60703.0,60702.0,0.022]
[1722717271904,0.319055,60703.0,60702.0,0.022]
[1722717272312,0.154319,60703.0,60702.0,0.022]
[1722717272909,0.154319,60703.0,60702.0,0.012]
[1722717273133,0.154319,60703.0,60702.0,0.062625]
[1722717273134,0.18015767,60703.0,60702.0,0.062625]
[1722717273338,0.18115767,60703.0,60702.0,0.050625]
[1722717273533,0.18115767,60703.0,60702.0,0.215364]
[1722717273737,0.03705767,60703.0,60702.0,0.87432]
[1722717273946,0.03705767,60703.0,60702.0,0.544842]
[1722717274148,0.011219,60703.0,60702.0,0.215364]
[1722717274347,0.011219,60703.0,60702.0,0.544842]
[1722717274548,0.010219,60703.0,60702.0,0.544842]
[1722717274949,0.010219,60703.0,60702.0,0.87432]
[1722717275419,0.010219,60703.0,60702.0,0.050625]
[1722717275758,0.010219,60703.0,60702.0,0.544842]
[1722717275954,0.012219,60703.0,60702.0,0.87432]
[1722717276757,0.010219,60703.0,60702.0,0.88032]
[1722717276968,0.011219,60703.0,60702.0,0.88032]
[1722717277182,0.011219,60703.0,60702.0,0.87432]
[1722717277456,0.010219,60703.0,60702.0,0.87432]
[1722717277656,0.010219,60703.0,60702.0,0.87632]
[1722717277860,0.010219,60703.0,60702.0,0.87432]
[1722717278322,0.010219,60703.0,60702.0,0.87932]
[1722717278720,0.010219,60703.0,60702.0,0.544842]
[1722717278872,0.03605679,60703.0,60702.0,0.544842]
[1722717279098,0.03605679,60703.0,60702.0,0.87932]
[1722717279295,0.010219,60703.0,60702.0,0.87932]
[1722717279494,0.010219,60703.0,60702.0,0.87432]
[1722717279700,0.010219,60703.0,60702.0,0.88032]
[1722717280649,0.010219,60703.0,60702.0,0.88732]
[1722717281249,0.010219,60703.0,60702.0,0.88032]
[1722717281452,0.010219,60703.0,60702.0,0.88832]
[1722717282061,0.03605673,60703.0,60702.0,1.03222]
[1722717282263,0.03605673,60703.0,60702.0,1.361698]
[1722717282624,0.010219,60703.0,60702.0,1.361698]
[1722717285966,0.03605593,60703.0,60702.0,1.361698]
[1722717286988,0.010219,60703.0,60702.0,1.361698]
[1722717289390,0.010219,60703.0,60702.0,1.41208286]
[1722717289844,0.010219,60703.0,60702.0,1.279798]
[1722717290210,0.010219,60703.0,60702.0,1.33019026]
[1722717290391,0.03605591,60703.0,60702.0,1.33019026]
[1722717290589,0.03605591,60703.0,60702.0,1.279798]
[1722717290590,0.010219,60703.0,60702.0,1.279798]
[1722717290800,0.070719,60703.0,60702.0,0.014]
[1722717291013,0.146519,60703.0,60702.0,0.014]
[1722717291388,0.311255,60703.0,60702.0,0.014]
[1722717291594,0.146519,60703.0,60702.0,0.014]
[1722717292417,0.146519,60703.0,60702.0,0.114]
[1722717293107,0.311255,60703.0,60702.0,0.114]
[1722717293476,0.311255,60703.0,60702.0,0.1749165]
[1722717293684,1.13595189,60703.0,60702.0,0.114]
[1722717293856,1.18479094,60703.0,60702.0,0.114]
[1722717294381,0.85531794,60703.0,60702.0,0.114]
[1722717294585,0.85531794,60703.0,60702.0,0.1]
[1722717294798,0.85531794,60703.0,60702.0,0.1100913]
[1722717295108,0.012219,60703.0,60702.0,1.0776863]
[1722717295544,0.012219,60703.0,60702.0,0.1100913]
[1722717296434,0.012219,60703.0,60702.0,0.2748303]
[1722717296633,0.010219,60703.0,60702.0,0.2748303]
[1722717296824,0.010219,60703.0,60702.0,0.1190913]
[1722717297053,0.010219,60703.0,60702.0,0.2838303]
[1722717297272,0.010219,60703.0,60702.0,0.2778303]
[1722717297505,0.010219,60703.0,60702.0,0.2748303]
[1722717297711,0.010219,60703.0,60702.0,0.2798303]
[1722717297960,0.010219,60703.0,60702.0,0.1150913]
[1722717298152,0.070719,60703.0,60702.0,0.1150913]
[1722717298369,0.070719,60703.0,60702.0,0.2758303]